[Event "29th Czech Open-Rapid 2018"]
[Site "Pardubice"]
[Date "2018.07.19"]
[Round "6"]
[White "Chekletsov, Egor"]
[Black "Westerinen, Heikki Mj"]
[Result "1-0"]
[ECO "E84"]
[WhiteElo "2082"]
[BlackElo "2312"]
[Annotator "NA"]
[PlyCount "93"]
[EventDate "2018.07.18"]
[EventType "swiss"]
[EventCountry "CZE"]
[SourceTitle "playchess.com"]
[Source "ChessBase"]
[SourceQuality "1"]
[TimeControl "900+10"]

1. d4 {[%emt 0:00:00]} Nf6 {[%emt 0:00:00]} 2. c4 {[%emt 0:00:00]} g6 {[%emt 0:00:00]} 3. Nc3 {[%emt 0:00:00]} Bg7 {[%emt 0:00:01]} 4. e4 {[%emt 0:00:00]} d6 {[%emt 0:00:02]} 5. f3 {[%emt 0:00:03]} O-O {[%emt 0:00:03]} 6. Be3 {[%emt 0:00:02]} Nc6 {[%emt 0:00:03]} 7. Nge2 {[%emt 0:00:18]} Rb8 {[%emt 0:00:09]} 8. Qd2 {[%emt 0:00:05]} a6 {[%emt 0:00:13]} 9. Rc1 {[%emt 0:00:02]} Bd7 {[%emt 0:00:10]} 10. Nd1 {[%emt 0:00:02]} b5 {[%emt 0:00:08]} 11. c5 {[%emt 0:00:02]} dxc5 {[%emt 0:00:17]} 12. Rxc5 {[%emt 0:00:04]} Rb7 {[%emt 0:01:23]} 13. g3 {[%emt 0:00:20]} Re8 {[%emt 0:00:32]} 14. Bg2 {[%emt 0:00:10]} e5 {[%emt 0:00:07]} 15. d5 {[%emt 0:00:07]} Ne7 {[%emt 0:00:38]} 16. O-O {[%emt 0:00:05]} Nc8 {[%emt 0:00:02]} 17. Nf2 {[%emt 0:00:41]} Nd6 {[%emt 0:00:04]} 18. b3 {[%emt 0:00:04]} b4 {[%emt 0:00:03]} 19. Rfc1 {[%emt 0:00:07]} Bb5 {[%emt 0:00:08]} 20. Bf1 {[%emt 0:00:40]} Nd7 {[%emt 0:00:19]} 21. R5c2 {[%emt 0:00:15]} a5 {[%emt 0:00:08]} 22. Nd3 {[%emt 0:01:19]} f5 {[%emt 0:00:16]} 23. Bg2 {[%emt 0:00:50]} Rf8 {[%emt 0:00:58]} 24. Bg5 {[%emt 0:00:13]} Bf6 {[%emt 0:01:02]} 25. Bh6 {[%emt 0:00:12]} Rf7 {[%emt 0:00:15]} 26. Nf2 {[%emt 0:00:57]} Qb8 {[%emt 0:00:39]} 27. Bh3 {[%emt 0:00:54]} Bd8 {[%emt 0:00:40]} 28. Be3 {[%emt 0:01:52]} Kh8 {[%emt 0:00:14]} 29. exf5 {[%emt 0:00:20]} gxf5 {[%emt 0:00:16]} 30. f4 {[%emt 0:00:02]} Bf6 {[%emt 0:00:36]} 31. Kh1 {[%emt 0:00:58]} Qd8 {[%emt 0:00:22]} 32. fxe5 {[%emt 0:00:08]} Nxe5 {[%emt 0:00:03]} 33. Nd4 {[%emt 0:00:02]} Bd7 {[%emt 0:00:19]} 34. Ne6 {[%emt 0:01:58]} Bxe6 {[%emt 0:01:22]} 35. dxe6 {[%emt 0:00:02]} Rg7 {[%emt 0:00:49]} 36. Bg2 {[%emt 0:00:56]} Rb5 {[%emt 0:00:27]} 37. Nd3 {[%emt 0:01:43]} Ng4 {[%emt 0:00:33]} 38. Nf4 {[%emt 0:01:00]} Re5 {[%emt 0:01:32]} 39. Bd4 {[%emt 0:00:11]} Ne4 {[%emt 0:01:34]} 40. Bxe4 {[%emt 0:00:20]} Rxe4 {[%emt 0:00:02]} 41. Bxf6 {[%emt 0:00:39]} Qxf6 {[%emt 0:00:01]} 42. Nh5 {[%emt 0:00:31]} Qxe6 {[%emt 0:00:38]} 43. Nxg7 {[%emt 0:00:23]} Kxg7 {[%emt 0:00:02]} 44. Rxc7+ {[%emt 0:00:02]} Kf8 {[%emt 0:01:42]} 45. Rc8+ {[%emt 0:00:15]} Kf7 {[%emt 0:00:14]} 46. R1c7+ {[%emt 0:00:02]} Kf6 {[%emt 0:01:01]} 47. Rc6 {[%emt 0:00:12]} 1-0

[Event "29th Czech Open-Rapid 2018"]
[Site "Pardubice"]
[Date "2018.07.19"]
[Round "6"]
[White "Maslak, Alexander"]
[Black "Semjonovs, Ilja"]
[Result "1/2-1/2"]
[ECO "B97"]
[WhiteElo "2069"]
[BlackElo "2187"]
[Annotator "NA"]
[PlyCount "35"]
[EventDate "2018.07.18"]
[EventType "swiss"]
[EventCountry "CZE"]
[SourceTitle "playchess.com"]
[Source "ChessBase"]
[SourceQuality "1"]
[TimeControl "900+10"]

1. e4 {[%emt 0:00:09]} c5 {[%emt 0:00:00]} 2. Nf3 {[%emt 0:00:02]} d6 {[%emt 0:00:00]} 3. d4 {[%emt 0:00:01]} cxd4 {[%emt 0:00:00]} 4. Nxd4 {[%emt 0:00:01]} Nf6 {[%emt 0:00:00]} 5. Nc3 {[%emt 0:00:02]} a6 {[%emt 0:00:00]} 6. Bg5 {[%emt 0:00:02]} e6 {[%emt 0:00:00]} 7. f4 {[%emt 0:00:02]} Qb6 {[%emt 0:00:00]} 8. Qd2 {[%emt 0:00:21]} Qxb2 {[%emt 0:00:02]} 9. Nb3 {[%emt 0:00:08]} Qa3 {[%emt 0:01:35]} 10. Bxf6 {[%emt 0:00:05]} gxf6 {[%emt 0:00:21]} 11. Be2 {[%emt 0:00:03]} Nc6 {[%emt 0:03:11]} 12. O-O {[%emt 0:00:44]} Qb4 {[%emt 0:05:30]} 13. Qe3 {[%emt 0:00:11]} Qa3 {[%emt 0:02:37]} 14. Nb1 {[%emt 0:06:28]} Qa4 {[%emt 0:01:45]} 15. Nc3 {[%emt 0:00:55]} Qa3 {[%emt 0:00:02]} 16. Nb1 {[%emt 0:00:03]} Qa4 {[%emt 0:01:09]} 17. Nc3 {[%emt 0:00:05]} Qa3 {[%emt 0:00:03]} 18. Nb1 {[%emt 0:00:03]} 1/2-1/2

[Event "29th Czech Open-Rapid 2018"]
[Site "Pardubice"]
[Date "2018.07.19"]
[Round "6"]
[White "Vykydal, Frantisek"]
[Black "Kathmale, Sameer"]
[Result "0-1"]
[ECO "B10"]
[WhiteElo "2045"]
[BlackElo "2272"]
[Annotator "NA"]
[PlyCount "68"]
[EventDate "2018.07.18"]
[EventType "swiss"]
[EventCountry "CZE"]
[SourceTitle "playchess.com"]
[Source "ChessBase"]
[SourceQuality "1"]
[TimeControl "900+10"]

1. e4 {[%emt 0:00:00]} c6 {[%emt 0:00:00]} 2. g3 {[%emt 0:00:00]} d5 {[%emt 0:00:00]} 3. Bg2 {[%emt 0:00:00]} dxe4 {[%emt 0:00:01]} 4. Bxe4 {[%emt 0:00:06]} Nf6 {[%emt 0:00:03]} 5. Bg2 {[%emt 0:00:01]} e5 {[%emt 0:00:23]} 6. d3 {[%emt 0:00:11]} Bc5 {[%emt 0:00:26]} 7. h3 {[%emt 0:01:15]} O-O {[%emt 0:00:08]} 8. Nc3 {[%emt 0:00:20]} Bf5 {[%emt 0:00:19]} 9. Nf3 {[%emt 0:00:14]} e4 {[%emt 0:00:11]} 10. dxe4 {[%emt 0:00:37]} Nxe4 {[%emt 0:01:00]} 11. Nxe4 {[%emt 0:00:26]} Qxd1+ {[%emt 0:00:31]} 12. Kxd1 {[%emt 0:00:03]} Bxe4 {[%emt 0:00:02]} 13. Be3 {[%emt 0:00:33]} Bxe3 {[%emt 0:00:13]} 14. fxe3 {[%emt 0:00:02]} Na6 {[%emt 0:00:03]} 15. Ne1 {[%emt 0:01:18]} Nc5 {[%emt 0:00:18]} 16. Ke2 {[%emt 0:00:59]} Rad8 {[%emt 0:00:40]} 17. Rd1 {[%emt 0:01:00]} Rxd1 {[%emt 0:01:00]} 18. Kxd1 {[%emt 0:00:03]} Rd8+ {[%emt 0:00:25]} 19. Kc1 {[%emt 0:00:20]} Bxg2 {[%emt 0:00:42]} 20. Nxg2 {[%emt 0:00:02]} Ne4 {[%emt 0:00:02]} 21. Nf4 {[%emt 0:03:23]} Nxg3 {[%emt 0:00:10]} 22. Rg1 {[%emt 0:00:08]} Ne4 {[%emt 0:00:10]} 23. Nd3 {[%emt 0:00:24]} f5 {[%emt 0:00:14]} 24. h4 {[%emt 0:00:17]} g6 {[%emt 0:00:03]} 25. h5 {[%emt 0:00:02]} Kg7 {[%emt 0:00:05]} 26. hxg6 {[%emt 0:00:09]} hxg6 {[%emt 0:00:03]} 27. Nf4 {[%emt 0:01:43]} Rd6 {[%emt 0:00:03]} 28. Nh5+ {[%emt 0:00:16]} Kf7 {[%emt 0:00:05]} 29. Nf4 {[%emt 0:00:08]} g5 {[%emt 0:00:17]} 30. Nd3 {[%emt 0:00:05]} Rh6 {[%emt 0:00:28]} 31. Ne5+ {[%emt 0:01:06]} Ke6 {[%emt 0:00:07]} 32. Nf3 {[%emt 0:00:04]} Kf6 {[%emt 0:00:10]} 33. Nd4 {[%emt 0:00:10]} c5 {[%emt 0:00:23]} 34. Nf3 {[%emt 0:00:27]} Rh3 {[%emt 0:00:25]} 0-1

[Event "29th Czech Open-Rapid 2018"]
[Site "Pardubice"]
[Date "2018.07.19"]
[Round "6"]
[White "Chrz, Pavel"]
[Black "Krouzel, Jaroslav"]
[Result "0-1"]
[ECO "A86"]
[WhiteElo "2038"]
[BlackElo "2132"]
[Annotator "NA"]
[PlyCount "62"]
[EventDate "2018.07.18"]
[EventType "swiss"]
[EventCountry "CZE"]
[SourceTitle "playchess.com"]
[Source "ChessBase"]
[SourceQuality "1"]
[TimeControl "900+10"]

1. d4 {[%emt 0:00:01]} f5 {[%emt 0:00:00]} 2. c4 {[%emt 0:01:29]} Nf6 {[%emt 0:00:00]} 3. g3 {[%emt 0:00:02]} d6 {[%emt 0:00:00]} 4. Nf3 {[%emt 0:00:06]} g6 {[%emt 0:00:00]} 5. Bg2 {[%emt 0:00:06]} Bg7 {[%emt 0:00:00]} 6. Nc3 {[%emt 0:00:15]} O-O {[%emt 0:00:02]} 7. Bg5 {[%emt 0:00:21]} Nbd7 {[%emt 0:00:03]} 8. Qd2 {[%emt 0:00:33]} c6 {[%emt 0:00:27]} 9. Bh6 {[%emt 0:00:28]} e5 {[%emt 0:00:57]} 10. Bxg7 {[%emt 0:01:42]} Kxg7 {[%emt 0:00:03]} 11. Ng5 {[%emt 0:00:18]} Qe7 {[%emt 0:00:39]} 12. d5 {[%emt 0:00:12]} cxd5 {[%emt 0:00:53]} 13. cxd5 {[%emt 0:00:22]} Nb6 {[%emt 0:00:32]} 14. Rd1 {[%emt 0:03:21]} Rd8 {[%emt 0:00:46]} 15. b3 {[%emt 0:00:06]} h6 {[%emt 0:00:12]} 16. Nf3 {[%emt 0:01:02]} Bd7 {[%emt 0:00:07]} 17. h4 {[%emt 0:00:24]} Be8 {[%emt 0:00:26]} 18. h5 {[%emt 0:00:52]} Nxh5 {[%emt 0:01:27]} 19. Nh4 {[%emt 0:00:14]} Qg5 {[%emt 0:01:27]} 20. Qd3 {[%emt 0:00:51]} Rac8 {[%emt 0:03:15]} 21. Nf3 {[%emt 0:00:24]} Qf6 {[%emt 0:00:14]} 22. Nh4 {[%emt 0:02:07]} e4 {[%emt 0:01:21]} 23. Nxe4 {[%emt 0:01:44]} fxe4 {[%emt 0:00:19]} 24. Bxe4 {[%emt 0:00:02]} Qc3+ {[%emt 0:00:38]} 25. Qxc3+ {[%emt 0:01:16]} Rxc3 {[%emt 0:00:03]} 26. Nf3 {[%emt 0:00:39]} Nf6 {[%emt 0:01:22]} 27. Nd4 {[%emt 0:00:10]} Bf7 {[%emt 0:00:22]} 28. Bg2 {[%emt 0:00:11]} Nfxd5 {[%emt 0:00:47]} 29. Nb5 {[%emt 0:00:15]} Rc5 {[%emt 0:00:09]} 30. a4 {[%emt 0:00:06]} a6 {[%emt 0:00:54]} 31. Nd4 {[%emt 0:00:13]} Rdc8 {[%emt 0:00:37]} 0-1

[Event "29th Czech Open-Rapid 2018"]
[Site "Pardubice"]
[Date "2018.07.19"]
[Round "6"]
[White "Hajek, Jiri"]
[Black "Annenkov, Kirill"]
[Result "0-1"]
[ECO "B11"]
[WhiteElo "2024"]
[BlackElo "2206"]
[Annotator "NA"]
[PlyCount "142"]
[EventDate "2018.07.18"]
[EventType "swiss"]
[EventCountry "CZE"]
[SourceTitle "playchess.com"]
[Source "ChessBase"]
[SourceQuality "1"]
[TimeControl "900+10"]

1. e4 c6 {[%emt 0:00:00]} 2. Nf3 {[%emt 0:00:00]} d5 {[%emt 0:00:00]} 3. Nc3 {[%emt 0:00:00]} Bg4 {[%emt 0:00:00]} 4. d4 {[%emt 0:00:00]} e6 {[%emt 0:00:01]} 5. Be2 {[%emt 0:00:21]} Nf6 {[%emt 0:00:09]} 6. exd5 {[%emt 0:00:04]} cxd5 {[%emt 0:00:36]} 7. O-O {[%emt 0:00:05]} Nc6 {[%emt 0:00:12]} 8. h3 {[%emt 0:00:18]} Bh5 {[%emt 0:00:11]} 9. Be3 {[%emt 0:00:38]} Bd6 {[%emt 0:00:15]} 10. Nb5 {[%emt 0:00:24]} Be7 {[%emt 0:00:17]} 11. a4 {[%emt 0:00:17]} O-O {[%emt 0:00:05]} 12. Ne5 {[%emt 0:02:12]} Bxe2 {[%emt 0:00:27]} 13. Qxe2 {[%emt 0:00:09]} Rc8 {[%emt 0:01:08]} 14. Rfd1 {[%emt 0:00:42]} a6 {[%emt 0:00:22]} 15. Na3 {[%emt 0:00:01]} Na5 {[%emt 0:00:25]} 16. c4 {[%emt 0:03:47]} Bxa3 {[%emt 0:00:25]} 17. Rxa3 {[%emt 0:00:04]} Nxc4 {[%emt 0:00:02]} 18. Nxc4 {[%emt 0:00:05]} dxc4 {[%emt 0:00:37]} 19. Bg5 Qd5 {[%emt 0:00:01]} 20. Bxf6 {[%emt 0:00:56]} gxf6 {[%emt 0:00:29]} 21. Rf3 {[%emt 0:01:04]} f5 22. Rg3+ Kh8 {[%emt 0:00:30]} 23. Qh5 {[%emt 0:00:22]} Qd8 {[%emt 0:02:12]} 24. d5 {[%emt 0:01:00]} Qf6 {[%emt 0:01:23]} 25. d6 {[%emt 0:01:11]} Rcd8 {[%emt 0:00:27]} 26. d7 {[%emt 0:00:16]} b5 {[%emt 0:00:12]} 27. axb5 {[%emt 0:01:01]} axb5 {[%emt 0:00:02]} 28. Rd2 {[%emt 0:01:47]} Rg8 {[%emt 0:00:52]} 29. Rxg8+ {[%emt 0:00:24]} Kxg8 {[%emt 0:00:27]} 30. Qf3 {[%emt 0:00:25]} Qe5 31. Kf1 Kf8 {[%emt 0:00:33]} 32. Qc6 {[%emt 0:00:49]} Ke7 {[%emt 0:00:20]} 33. Qc8 {[%emt 0:01:44]} h5 {[%emt 0:00:52]} 34. g3 {[%emt 0:00:20]} h4 {[%emt 0:00:40]} 35. gxh4 {[%emt 0:00:05]} f4 {[%emt 0:00:07]} 36. Qc6 {[%emt 0:00:14]} Kf6 {[%emt 0:02:52]} 37. Qb6 {[%emt 0:00:10]} Ke7 {[%emt 0:00:18]} 38. h5 {[%emt 0:00:06]} Qe4 {[%emt 0:00:37]} 39. Qd6+ {[%emt 0:00:04]} Kf6 {[%emt 0:00:03]} 40. Qd4+ {[%emt 0:00:14]} Qxd4 {[%emt 0:00:17]} 41. Rxd4 {[%emt 0:00:01]} e5 {[%emt 0:00:33]} 42. Rd2 {[%emt 0:00:14]} e4 {[%emt 0:00:28]} 43. h6 {[%emt 0:00:07]} Kg6 44. Rd6+ {[%emt 0:00:21]} f6 {[%emt 0:00:04]} 45. Ke2 {[%emt 0:00:10]} Kxh6 {[%emt 0:00:07]} 46. Rxf6+ {[%emt 0:00:00]} Kg5 47. Rd6 {[%emt 0:00:17]} Kf5 {[%emt 0:00:03]} 48. Rd5+ {[%emt 0:00:18]} Ke6 {[%emt 0:00:02]} 49. Rxb5 {[%emt 0:00:01]} Rxd7 50. h4 {[%emt 0:00:06]} Rd3 {[%emt 0:00:15]} 51. h5 {[%emt 0:00:05]} Rh3 {[%emt 0:00:01]} 52. h6 {[%emt 0:00:08]} Rh2 {[%emt 0:00:05]} 53. Rb6+ {[%emt 0:00:19]} Kd5 {[%emt 0:00:04]} 54. Ke1 {[%emt 0:00:05]} f3 {[%emt 0:00:28]} 55. Rg6 {[%emt 0:00:19]} Kc5 {[%emt 0:00:05]} 56. Rg5+ {[%emt 0:00:19]} Kd4 {[%emt 0:00:11]} 57. Rg6 {[%emt 0:00:02]} Kd3 {[%emt 0:00:10]} 58. Rd6+ {[%emt 0:00:01]} Kc2 {[%emt 0:00:02]} 59. Rd2+ {[%emt 0:00:02]} Kb3 {[%emt 0:00:04]} 60. Rd4 {[%emt 0:00:01]} Rxh6 {[%emt 0:01:02]} 61. Rxe4 {[%emt 0:00:01]} Rc6 {[%emt 0:00:03]} 62. Re3+ {[%emt 0:00:21]} Kxb2 {[%emt 0:00:01]} 63. Rxf3 {[%emt 0:00:02]} c3 {[%emt 0:00:01]} 64. Re3 {[%emt 0:00:43]} c2 {[%emt 0:00:02]} 65. Re2 {[%emt 0:00:01]} Kb3 {[%emt 0:00:12]} 66. Rxc2 {[%emt 0:00:14]} Kxc2 {[%emt 0:00:02]} 67. Ke2 {[%emt 0:00:03]} Re6+ {[%emt 0:00:02]} 68. Kf3 {[%emt 0:00:02]} Kd3 {[%emt 0:00:02]} 69. Kg4 {[%emt 0:00:07]} Re2 {[%emt 0:00:19]} 70. f4 {[%emt 0:00:04]} Ke4 {[%emt 0:00:02]} 71. f5 {[%emt 0:00:03]} Rg2+ {[%emt 0:00:03]} 0-1

[Event "29th Czech Open-Rapid 2018"]
[Site "Pardubice"]
[Date "2018.07.19"]
[Round "6"]
[White "Jazdanovs, Aleksandrs"]
[Black "Bente, Bjoern"]
[Result "1/2-1/2"]
[ECO "C11"]
[WhiteElo "2013"]
[BlackElo "2228"]
[Annotator "NA"]
[PlyCount "105"]
[EventDate "2018.07.18"]
[EventType "swiss"]
[EventCountry "CZE"]
[SourceTitle "playchess.com"]
[Source "ChessBase"]
[SourceQuality "1"]
[TimeControl "900+10"]

1. e4 {[%emt 0:00:00]} e6 {[%emt 0:00:00]} 2. d4 {[%emt 0:00:00]} d5 {[%emt 0:00:00]} 3. Nc3 {[%emt 0:00:05]} Nf6 {[%emt 0:00:00]} 4. e5 {[%emt 0:00:07]} Nfd7 {[%emt 0:00:02]} 5. f4 {[%emt 0:00:08]} c5 {[%emt 0:00:11]} 6. Nf3 {[%emt 0:00:03]} Be7 {[%emt 0:00:02]} 7. Be3 {[%emt 0:00:05]} b6 {[%emt 0:00:01]} 8. Qd2 {[%emt 0:00:13]} Ba6 {[%emt 0:00:10]} 9. O-O-O {[%emt 0:00:23]} Bxf1 {[%emt 0:00:08]} 10. Rdxf1 {[%emt 0:00:02]} c4 {[%emt 0:00:01]} 11. g4 {[%emt 0:00:04]} Nc6 {[%emt 0:00:19]} 12. f5 {[%emt 0:00:06]} b5 {[%emt 0:00:27]} 13. fxe6 {[%emt 0:00:34]} fxe6 {[%emt 0:00:02]} 14. Nxb5 {[%emt 0:01:13]} Rb8 {[%emt 0:00:18]} 15. Nd6+ {[%emt 0:00:07]} Bxd6 {[%emt 0:00:12]} 16. exd6 {[%emt 0:00:01]} Nf6 {[%emt 0:00:36]} 17. Ng5 {[%emt 0:01:37]} O-O {[%emt 0:01:24]} 18. Nxe6 {[%emt 0:00:14]} Qb6 {[%emt 0:00:00]} 19. c3 {[%emt 0:00:01]} Rfe8 {[%emt 0:00:09]} 20. Nc5 {[%emt 0:00:01]} Rxe3 {[%emt 0:01:04]} 21. Rxf6 {[%emt 0:01:52]} gxf6 {[%emt 0:04:29]} 22. Na4 {[%emt 0:01:45]} Rd3 {[%emt 0:01:21]} 23. Nxb6 {[%emt 0:00:20]} Rxd2 {[%emt 0:00:02]} 24. Kxd2 {[%emt 0:00:13]} Rxb6 {[%emt 0:00:10]} 25. Kc2 {[%emt 0:00:22]} Kf7 {[%emt 0:01:30]} 26. Rf1 {[%emt 0:00:20]} Nd8 {[%emt 0:00:04]} 27. d7 {[%emt 0:00:06]} Ke7 {[%emt 0:00:25]} 28. Rf5 {[%emt 0:00:03]} Rd6 {[%emt 0:00:25]} 29. Rh5 {[%emt 0:00:02]} Rxd7 {[%emt 0:00:08]} 30. Rxh7+ {[%emt 0:00:01]} Ke6 {[%emt 0:00:01]} 31. Rh3 {[%emt 0:00:19]} Rg7 {[%emt 0:00:35]} 32. Re3+ {[%emt 0:00:01]} Kd6 {[%emt 0:00:07]} 33. h3 {[%emt 0:00:01]} Ne6 {[%emt 0:00:30]} 34. b3 {[%emt 0:00:12]} cxb3+ {[%emt 0:00:14]} 35. axb3 {[%emt 0:00:01]} Ng5 {[%emt 0:00:30]} 36. c4 {[%emt 0:00:37]} dxc4 {[%emt 0:00:02]} 37. bxc4 {[%emt 0:00:01]} Rh7 {[%emt 0:00:04]} 38. Ra3 {[%emt 0:00:06]} Rc7 {[%emt 0:00:51]} 39. h4 {[%emt 0:00:24]} Ne6 {[%emt 0:00:53]} 40. Ra6+ {[%emt 0:00:15]} Ke7 {[%emt 0:00:08]} 41. Kd3 {[%emt 0:00:47]} Rd7 {[%emt 0:00:29]} 42. Kc3 {[%emt 0:00:44]} Nxd4 {[%emt 0:00:07]} 43. g5 {[%emt 0:00:05]} fxg5 {[%emt 0:01:25]} 44. hxg5 {[%emt 0:00:01]} Ne6 {[%emt 0:00:01]} 45. g6 {[%emt 0:00:11]} Rc7 {[%emt 0:00:42]} 46. Kb4 {[%emt 0:00:22]} Rb7+ {[%emt 0:00:23]} 47. Kc3 {[%emt 0:00:03]} Nc5 {[%emt 0:00:58]} 48. Rc6 {[%emt 0:00:12]} Ne6 {[%emt 0:00:29]} 49. Ra6 {[%emt 0:00:16]} Kd7 {[%emt 0:00:03]} 50. c5 {[%emt 0:00:21]} Rc7 {[%emt 0:00:21]} 51. Kb2 {[%emt 0:01:02]} Kc8 {[%emt 0:00:34]} 52. Rxe6 {[%emt 0:00:03]} Rxc5 {[%emt 0:00:02]} 53. Ka3 {[%emt 0:00:05]} 1/2-1/2

[Event "29th Czech Open-Rapid 2018"]
[Site "Pardubice"]
[Date "2018.07.19"]
[Round "6"]
[White "Haase, Pavel"]
[Black "Ret, Adam Josef"]
[Result "1/2-1/2"]
[ECO "D02"]
[WhiteElo "1975"]
[BlackElo "1693"]
[Annotator "NA"]
[PlyCount "96"]
[EventDate "2018.07.18"]
[EventType "swiss"]
[EventCountry "CZE"]
[SourceTitle "playchess.com"]
[Source "ChessBase"]
[SourceQuality "1"]
[TimeControl "900+10"]

1. Nf3 {[%emt 0:00:00]} d5 {[%emt 0:00:00]} 2. d4 {[%emt 0:00:00]} Nf6 {[%emt 0:00:00]} 3. Bf4 {[%emt 0:00:00]} e6 {[%emt 0:00:30]} 4. e3 {[%emt 0:00:05]} c5 {[%emt 0:00:05]} 5. c3 {[%emt 0:00:03]} Nc6 {[%emt 0:00:10]} 6. Bd3 {[%emt 0:00:03]} Bd6 {[%emt 0:00:03]} 7. Ne5 {[%emt 0:00:10]} Qc7 {[%emt 0:01:16]} 8. Nd2 {[%emt 0:00:09]} Nxe5 {[%emt 0:00:52]} 9. dxe5 {[%emt 0:00:15]} Bxe5 {[%emt 0:00:04]} 10. Bxe5 {[%emt 0:00:39]} Qxe5 {[%emt 0:00:03]} 11. O-O {[%emt 0:00:25]} O-O {[%emt 0:00:03]} 12. Qc2 {[%emt 0:00:29]} g6 {[%emt 0:00:20]} 13. Rae1 {[%emt 0:00:04]} Qc7 {[%emt 0:00:12]} 14. f4 {[%emt 0:00:19]} b6 {[%emt 0:00:13]} 15. c4 {[%emt 0:01:03]} Bb7 {[%emt 0:00:50]} 16. cxd5 {[%emt 0:00:02]} Nxd5 {[%emt 0:00:52]} 17. a3 {[%emt 0:00:19]} f5 {[%emt 0:00:23]} 18. g3 {[%emt 0:00:31]} Qc6 {[%emt 0:00:26]} 19. e4 {[%emt 0:02:05]} Nf6 {[%emt 0:00:34]} 20. Rf3 {[%emt 0:00:06]} Rfe8 {[%emt 0:00:52]} 21. Qb3 {[%emt 0:01:11]} Kg7 {[%emt 0:00:39]} 22. Bb5 {[%emt 0:01:18]} Qc7 {[%emt 0:01:00]} 23. Bxe8 {[%emt 0:00:04]} fxe4 {[%emt 0:01:02]} 24. Rfe3 {[%emt 0:00:41]} Rxe8 {[%emt 0:00:54]} 25. Nxe4 {[%emt 0:00:41]} Nxe4 {[%emt 0:00:20]} 26. Rxe4 {[%emt 0:00:36]} Bxe4 {[%emt 0:00:05]} 27. Rxe4 {[%emt 0:00:01]} Qd6 {[%emt 0:00:29]} 28. Qc3+ {[%emt 0:00:27]} Kf7 {[%emt 0:00:09]} 29. Kf2 {[%emt 0:01:09]} Rd8 {[%emt 0:00:23]} 30. Re2 {[%emt 0:00:40]} Qd4+ {[%emt 0:00:06]} 31. Qxd4 {[%emt 0:00:06]} Rxd4 {[%emt 0:00:06]} 32. Ke3 {[%emt 0:00:18]} Kf6 {[%emt 0:01:17]} 33. g4 {[%emt 0:00:03]} h6 {[%emt 0:00:16]} 34. h4 {[%emt 0:00:47]} g5 {[%emt 0:00:33]} 35. fxg5+ {[%emt 0:00:03]} hxg5 {[%emt 0:00:02]} 36. Rf2+ {[%emt 0:00:03]} Kg7 {[%emt 0:00:49]} 37. hxg5 {[%emt 0:00:21]} Rxg4 {[%emt 0:00:13]} 38. Rf6 {[%emt 0:00:09]} Rxg5 {[%emt 0:01:25]} 39. Rxe6 {[%emt 0:00:02]} Kf7 {[%emt 0:00:47]} 40. Rc6 {[%emt 0:00:08]} Rg2 {[%emt 0:00:46]} 41. b4 {[%emt 0:00:38]} Rg3+ {[%emt 0:00:59]} 42. Kd2 {[%emt 0:00:43]} Rxa3 {[%emt 0:00:27]} 43. bxc5 {[%emt 0:00:04]} bxc5 {[%emt 0:00:11]} 44. Rxc5 {[%emt 0:00:02]} Ke7 {[%emt 0:00:08]} 45. Rd5 {[%emt 0:00:09]} Ke6 {[%emt 0:00:06]} 46. Rd8 {[%emt 0:00:03]} a5 {[%emt 0:00:05]} 47. Kc2 {[%emt 0:00:02]} a4 {[%emt 0:00:05]} 48. Kb2 {[%emt 0:00:03]} Rb3+ {[%emt 0:00:11]} 1/2-1/2